[Event "Early-Titled-Tuesday-Blitz-May-28-2024"]
[Site "Chess.com"]
[Date "2024.05.28"]
[Round "4"]
[White "AwareIdea"]
[Black "Viktor_Poddubnyi"]
[Result "1-0"]
[WhiteElo "2485"]
[BlackElo "2292"]
[TimeControl "180+1"]
[EndTime "8:39:54 PDT"]
[Termination "AwareIdea won on time"]

1. d4 {[%clk 0:03:00.9]} 1... g6 {[%clk 0:03:00]} 2. c4 {[%clk 0:02:57.5]} 2...
Bg7 {[%clk 0:03:00.5]} 3. Nf3 {[%clk 0:02:57.5]} 3... c5 {[%clk 0:03:00.4]} 4.
d5 {[%clk 0:02:55.8]} 4... f5 {[%clk 0:03:00.3]} 5. g3 {[%clk 0:02:52.5]} 5...
Nf6 {[%clk 0:02:59.4]} 6. Bg2 {[%clk 0:02:52.8]} 6... O-O {[%clk 0:02:58.9]} 7.
O-O {[%clk 0:02:53]} 7... d6 {[%clk 0:02:58.9]} 8. Nc3 {[%clk 0:02:53.1]} 8...
h6 {[%clk 0:02:58.9]} 9. Nd2 {[%clk 0:02:50]} 9... g5 {[%clk 0:02:55.7]} 10. Nf3
{[%clk 0:02:46.5]} 10... Qe8 {[%clk 0:02:52.2]} 11. Qc2 {[%clk 0:02:40.6]} 11...
Qg6 {[%clk 0:02:28.9]} 12. Nb5 {[%clk 0:02:34.2]} 12... Na6 {[%clk 0:02:21.5]}
13. a3 {[%clk 0:02:33.9]} 13... Bd7 {[%clk 0:02:06.6]} 14. Nc3 {[%clk
0:02:33.6]} 14... Ng4 {[%clk 0:01:51.1]} 15. Ne1 {[%clk 0:02:16.4]} 15... Qf7
{[%clk 0:01:39.8]} 16. h3 {[%clk 0:02:09.1]} 16... Ne5 {[%clk 0:01:35.7]} 17. b3
{[%clk 0:02:03]} 17... f4 {[%clk 0:01:21.6]} 18. Bb2 {[%clk 0:01:51.7]} 18...
Bf5 {[%clk 0:01:15.2]} 19. Qd2 {[%clk 0:01:51.5]} 19... Qg6 {[%clk 0:01:08.4]}
20. g4 {[%clk 0:01:34.6]} 20... Bxg4 {[%clk 0:00:53.5]} 21. hxg4 {[%clk
0:01:32.5]} 21... Nxg4 {[%clk 0:00:54.4]} 22. Qd3 {[%clk 0:01:21.8]} 22... Qf7
{[%clk 0:00:35]} 23. Bh3 {[%clk 0:01:16.4]} 23... h5 {[%clk 0:00:33.5]} 24. Nf3
{[%clk 0:01:12.1]} 24... Bf6 {[%clk 0:00:30.1]} 25. Na4 {[%clk 0:00:49.9]} 25...
Bxb2 {[%clk 0:00:23]} 26. Nxb2 {[%clk 0:00:50.8]} 26... Qg7 {[%clk 0:00:21.6]}
27. Qc2 {[%clk 0:00:48.1]} 27... Nf6 {[%clk 0:00:20]} 28. Be6+ {[%clk
0:00:47.6]} 28... Kh8 {[%clk 0:00:20.4]} 29. Nh2 {[%clk 0:00:42.9]} 29... Nc7
{[%clk 0:00:19.8]} 30. Bf5 {[%clk 0:00:42]} 30... g4 {[%clk 0:00:18.3]} 31. Kh1
{[%clk 0:00:41.9]} 31... Qg5 {[%clk 0:00:18]} 32. Rg1 {[%clk 0:00:35]} 32...
Nfxd5 {[%clk 0:00:17.4]} 33. Be4 {[%clk 0:00:29.2]} 33... Nf6 {[%clk 0:00:15.7]}
34. Bxb7 {[%clk 0:00:28.9]} 34... Rab8 {[%clk 0:00:16.1]} 35. Bc6 {[%clk
0:00:28.9]} 35... Ne6 {[%clk 0:00:15.5]} 36. Bd5 {[%clk 0:00:23.1]} 36... Nd4
{[%clk 0:00:14.8]} 37. Qd1 {[%clk 0:00:20.3]} 37... Rxb3 {[%clk 0:00:14]} 38.
Nd3 {[%clk 0:00:20.4]} 38... Qh4 {[%clk 0:00:10.9]} 39. Nxf4 {[%clk 0:00:17.9]}
39... Nxd5 {[%clk 0:00:09.6]} 40. Ng6+ {[%clk 0:00:17.7]} 40... Kg7 {[%clk
0:00:07.7]} 41. Nxh4 {[%clk 0:00:18.6]} 41... Rxf2 {[%clk 0:00:07.6]} 42. cxd5
{[%clk 0:00:17.2]} 42... Rh3 {[%clk 0:00:07.4]} 43. Rg2 {[%clk 0:00:16.9]} 1-0

[Event "Early-Titled-Tuesday-Blitz-May-28-2024"]
[Site "Chess.com"]
[Date "2024.05.28"]
[Round "4"]
[White "Smiechu"]
[Black "frequentblunders"]
[Result "1-0"]
[WhiteElo "2422"]
[BlackElo "2222"]
[TimeControl "180+1"]
[EndTime "8:39:54 PDT"]
[Termination "Smiechu won on time"]

1. e4 {[%clk 0:03:00.9]} 1... e6 {[%clk 0:02:55.3]} 2. d4 {[%clk 0:03:00.4]}
2... c5 {[%clk 0:02:55.8]} 3. Nf3 {[%clk 0:02:59.7]} 3... cxd4 {[%clk
0:02:50.9]} 4. Nxd4 {[%clk 0:02:59.6]} 4... Nf6 {[%clk 0:02:51.5]} 5. Nc3 {[%clk
0:02:59]} 5... Nc6 {[%clk 0:02:51.7]} 6. a3 {[%clk 0:02:57.8]} 6... Bc5 {[%clk
0:02:45.7]} 7. Be3 {[%clk 0:02:51.6]} 7... Nxd4 {[%clk 0:02:39.9]} 8. Bxd4
{[%clk 0:02:51.3]} 8... Bxd4 {[%clk 0:02:40.1]} 9. Qxd4 {[%clk 0:02:51.3]} 9...
O-O {[%clk 0:02:40.6]} 10. e5 {[%clk 0:02:49.3]} 10... Nd5 {[%clk 0:02:31.1]}
11. Nxd5 {[%clk 0:02:48.8]} 11... exd5 {[%clk 0:02:32]} 12. Qxd5 {[%clk
0:02:48.7]} 12... Re8 {[%clk 0:02:25.8]} 13. Bc4 {[%clk 0:02:40.3]} 13... Qe7
{[%clk 0:02:18.5]} 14. O-O-O {[%clk 0:02:39.6]} 14... Rb8 {[%clk 0:01:55.2]} 15.
f4 {[%clk 0:02:32.7]} 15... b5 {[%clk 0:01:51.6]} 16. Bb3 {[%clk 0:02:30.2]}
16... Bb7 {[%clk 0:01:48.9]} 17. Qxd7 {[%clk 0:02:29.3]} 17... Bxg2 {[%clk
0:01:46.8]} 18. Rhg1 {[%clk 0:02:25.2]} 18... Be4 {[%clk 0:01:36.6]} 19. Rd4
{[%clk 0:02:19.8]} 19... Bg6 {[%clk 0:01:21]} 20. Kb1 {[%clk 0:01:54.5]} 20...
Rb7 {[%clk 0:00:57.7]} 21. Qxe7 {[%clk 0:01:48.1]} 21... Rbxe7 {[%clk
0:00:58.6]} 22. Rgd1 {[%clk 0:01:47.6]} 22... Kf8 {[%clk 0:00:36.9]} 23. Rd5
{[%clk 0:01:33.6]} 23... Rb7 {[%clk 0:00:26.1]} 24. Rd7 {[%clk 0:01:21.3]} 24...
Rxd7 {[%clk 0:00:23.5]} 25. Rxd7 {[%clk 0:01:20.6]} 25... Re7 {[%clk 0:00:24.1]}
26. Rd5 {[%clk 0:01:15.1]} 26... Rb7 {[%clk 0:00:20.8]} 27. Kc1 {[%clk 0:01:15]}
27... Ke7 {[%clk 0:00:20.6]} 28. Kd2 {[%clk 0:01:10.7]} 28... f6 {[%clk
0:00:20.7]} 29. Ke3 {[%clk 0:01:06.9]} 29... Bf7 {[%clk 0:00:20.3]} 30. Rc5
{[%clk 0:00:41.6]} 30... Bxb3 {[%clk 0:00:19.5]} 31. cxb3 {[%clk 0:00:42.5]}
31... fxe5 {[%clk 0:00:18.3]} 32. fxe5 {[%clk 0:00:43.4]} 32... Ke6 {[%clk
0:00:17.7]} 33. Ke4 {[%clk 0:00:42.9]} 33... g6 {[%clk 0:00:15.5]} 34. Rc6+
{[%clk 0:00:40.1]} 34... Ke7 {[%clk 0:00:15.7]} 35. b4 {[%clk 0:00:39]} 35...
Rd7 {[%clk 0:00:13.5]} 36. Ra6 {[%clk 0:00:38.3]} 36... Rb7 {[%clk 0:00:09.4]}
37. Kd5 {[%clk 0:00:33.2]} 37... Rd7+ {[%clk 0:00:07.1]} 38. Kc5 {[%clk
0:00:33.4]} 38... Rd2 {[%clk 0:00:05.9]} 39. Rxa7+ {[%clk 0:00:31.4]} 39... Ke6
{[%clk 0:00:05.6]} 40. Rxh7 {[%clk 0:00:31.2]} 40... Kxe5 {[%clk 0:00:04.2]} 41.
Kxb5 {[%clk 0:00:30]} 41... Rxb2 {[%clk 0:00:04.3]} 42. a4 {[%clk 0:00:30.4]}
42... g5 {[%clk 0:00:04.2]} 43. a5 {[%clk 0:00:30.5]} 43... Kf4 {[%clk
0:00:04.5]} 44. a6 {[%clk 0:00:30.5]} 44... Ra2 {[%clk 0:00:04.2]} 45. Kb6
{[%clk 0:00:30.5]} 45... g4 {[%clk 0:00:04.3]} 46. b5 {[%clk 0:00:30.6]} 46...
Kf3 {[%clk 0:00:04.6]} 47. a7 {[%clk 0:00:30.5]} 47... Ra1 {[%clk 0:00:01.4]}
48. Kb7 {[%clk 0:00:30]} 1-0

[Event "Early-Titled-Tuesday-Blitz-May-28-2024"]
[Site "Chess.com"]
[Date "2024.05.28"]
[Round "4"]
[White "Yeritsyaan"]
[Black "Bob_2004"]
[Result "0-1"]
[WhiteElo "2703"]
[BlackElo "2509"]
[TimeControl "180+1"]
[EndTime "8:39:57 PDT"]
[Termination "Bob_2004 won by resignation"]

1. b3 {[%clk 0:03:00.9]} 1... Nf6 {[%clk 0:03:00]} 2. Bb2 {[%clk 0:03:01.3]}
2... g6 {[%clk 0:03:00.9]} 3. e4 {[%clk 0:03:00.9]} 3... d6 {[%clk 0:02:59.9]}
4. Nf3 {[%clk 0:03:00.4]} 4... Bg7 {[%clk 0:03:00.1]} 5. d3 {[%clk 0:03:00.1]}
5... O-O {[%clk 0:03:00.1]} 6. Nbd2 {[%clk 0:03:00]} 6... a5 {[%clk 0:02:58.7]}
7. Be2 {[%clk 0:02:54.5]} 7... a4 {[%clk 0:02:58.6]} 8. O-O {[%clk 0:02:54.6]}
8... c5 {[%clk 0:02:52.2]} 9. e5 {[%clk 0:02:49.2]} 9... Nfd7 {[%clk 0:02:50.6]}
10. d4 {[%clk 0:02:45.8]} 10... cxd4 {[%clk 0:02:48.4]} 11. exd6 {[%clk
0:02:46.5]} 11... e5 {[%clk 0:02:48.5]} 12. c3 {[%clk 0:02:44.5]} 12... a3
{[%clk 0:02:48.5]} 13. Bc1 {[%clk 0:02:44.3]} 13... f5 {[%clk 0:02:36.3]} 14.
cxd4 {[%clk 0:02:41.4]} 14... e4 {[%clk 0:02:36.8]} 15. Ne5 {[%clk 0:02:41.8]}
15... Nxe5 {[%clk 0:02:34.6]} 16. dxe5 {[%clk 0:02:42.7]} 16... Bxe5 {[%clk
0:02:35.1]} 17. Rb1 {[%clk 0:02:43.3]} 17... Bxd6 {[%clk 0:02:18.5]} 18. Nc4
{[%clk 0:02:41.2]} 18... Be7 {[%clk 0:02:15.6]} 19. Qxd8 {[%clk 0:02:23.5]}
19... Rxd8 {[%clk 0:02:13.7]} 20. Nb6 {[%clk 0:02:23.3]} 20... Ra5 {[%clk
0:02:12.6]} 21. b4 {[%clk 0:02:09.3]} 21... Ra7 {[%clk 0:00:55.3]} 22. Bf4
{[%clk 0:02:03.6]} 22... Nc6 {[%clk 0:00:53]} 23. Bc4+ {[%clk 0:02:04.2]} 23...
Kf8 {[%clk 0:00:51.2]} 24. b5 {[%clk 0:02:04.8]} 24... Na5 {[%clk 0:00:48.1]}
25. Be2 {[%clk 0:01:34.9]} 25... Be6 {[%clk 0:00:47.3]} 26. Rbd1 {[%clk
0:01:18.5]} 26... Rxd1 {[%clk 0:00:38.5]} 27. Rxd1 {[%clk 0:01:19.4]} 27... Bc5
{[%clk 0:00:38.8]} 28. Nd7+ {[%clk 0:01:13.5]} 28... Bxd7 {[%clk 0:00:38.1]} 29.
Rxd7 {[%clk 0:01:14.4]} 29... Ra8 {[%clk 0:00:38.3]} 30. Rxh7 {[%clk 0:01:09.8]}
30... Kg8 {[%clk 0:00:34.5]} 31. Rd7 {[%clk 0:01:04.2]} 31... Rc8 {[%clk
0:00:30.4]} 32. h4 {[%clk 0:01:03.6]} 32... Bf8 {[%clk 0:00:27.1]} 33. h5 {[%clk
0:00:54.4]} 33... Rc2 {[%clk 0:00:24.7]} 34. Bd1 {[%clk 0:00:54.2]} 34... Rxa2
{[%clk 0:00:24.2]} 35. hxg6 {[%clk 0:00:54.7]} 35... Ra1 {[%clk 0:00:21.2]} 36.
Be5 {[%clk 0:00:54.4]} 36... Rb1 {[%clk 0:00:15.8]} 37. g7 {[%clk 0:00:47.3]}
37... Bxg7 {[%clk 0:00:16.2]} 38. Rxg7+ {[%clk 0:00:46.9]} 38... Kf8 {[%clk
0:00:16.8]} 39. Rd7 {[%clk 0:00:45.2]} 39... Nc4 {[%clk 0:00:17.4]} 40. Bg7+
{[%clk 0:00:29.1]} 40... Ke8 {[%clk 0:00:17.5]} 41. Rd4 {[%clk 0:00:27.1]} 41...
Nb2 {[%clk 0:00:17.1]} 42. Kh2 {[%clk 0:00:24.5]} 42... a2 {[%clk 0:00:16.5]}
43. Bh5+ {[%clk 0:00:17.9]} 43... Ke7 {[%clk 0:00:17]} 44. Ra4 {[%clk
0:00:18.6]} 44... Nxa4 {[%clk 0:00:15.4]} 45. Bd4 {[%clk 0:00:12.5]} 45... a1=Q
{[%clk 0:00:15.7]} 46. Bxa1 {[%clk 0:00:12.5]} 46... Rxa1 {[%clk 0:00:16.6]} 47.
Bg6 {[%clk 0:00:13.4]} 47... Kf6 {[%clk 0:00:17]} 0-1

[Event "Early-Titled-Tuesday-Blitz-May-28-2024"]
[Site "Chess.com"]
[Date "2024.05.28"]
[Round "4"]
[White "balack95"]
[Black "MarlonJodar"]
[Result "1-0"]
[WhiteElo "2502"]
[BlackElo "2310"]
[TimeControl "180+1"]
[EndTime "8:39:57 PDT"]
[Termination "balack95 won on time"]

1. Nf3 {[%clk 0:03:00.9]} 1... d5 {[%clk 0:02:59.4]} 2. c4 {[%clk 0:03:01.2]}
2... c6 {[%clk 0:02:58.8]} 3. g3 {[%clk 0:03:01]} 3... Nf6 {[%clk 0:02:58.6]} 4.
Bg2 {[%clk 0:03:01.9]} 4... Bf5 {[%clk 0:02:58.2]} 5. O-O {[%clk 0:03:01.8]}
5... e6 {[%clk 0:02:58.3]} 6. b3 {[%clk 0:02:57.6]} 6... Be7 {[%clk 0:02:56.5]}
7. Bb2 {[%clk 0:02:57.1]} 7... Nbd7 {[%clk 0:02:55.8]} 8. d3 {[%clk 0:02:57.6]}
8... h6 {[%clk 0:02:55]} 9. Nc3 {[%clk 0:02:58.1]} 9... O-O {[%clk 0:02:53.7]}
10. Re1 {[%clk 0:02:57.2]} 10... Bh7 {[%clk 0:02:50.4]} 11. Rc1 {[%clk
0:02:57.7]} 11... a5 {[%clk 0:02:47.9]} 12. e4 {[%clk 0:02:57.1]} 12... dxe4
{[%clk 0:02:42.7]} 13. dxe4 {[%clk 0:02:56.1]} 13... e5 {[%clk 0:02:42.7]} 14.
Qe2 {[%clk 0:02:40.8]} 14... Qc7 {[%clk 0:02:40.5]} 15. Nh4 {[%clk 0:02:39.5]}
15... Rfe8 {[%clk 0:02:37.6]} 16. Nf5 {[%clk 0:02:39.1]} 16... Bf8 {[%clk
0:02:24.7]} 17. Red1 {[%clk 0:02:25]} 17... Nc5 {[%clk 0:02:17.6]} 18. h4 {[%clk
0:02:09.2]} 18... Ne6 {[%clk 0:02:10.1]} 19. Nd5 {[%clk 0:01:56.9]} 19... Nxd5
{[%clk 0:01:35]} 20. cxd5 {[%clk 0:01:56]} 20... Bxf5 {[%clk 0:01:20.3]} 21.
exf5 {[%clk 0:01:50.1]} 21... Nd4 {[%clk 0:01:19.8]} 22. Qg4 {[%clk 0:01:47]}
22... c5 {[%clk 0:00:20.9]} 23. Bxd4 {[%clk 0:01:42.2]} 23... exd4 {[%clk
0:00:21.1]} 24. Rxd4 {[%clk 0:01:41.8]} 24... Qd6 {[%clk 0:00:21.3]} 25. Rdd1
{[%clk 0:01:30]} 25... b6 {[%clk 0:00:20.9]} 26. Re1 {[%clk 0:01:25.4]} 26...
Rad8 {[%clk 0:00:19.8]} 27. Qc4 {[%clk 0:01:24.8]} 27... Qf6 {[%clk 0:00:19]}
28. Qg4 {[%clk 0:01:13.6]} 28... Bd6 {[%clk 0:00:18.5]} 29. a4 {[%clk
0:01:08.3]} 29... Re5 {[%clk 0:00:15.7]} 30. Rxe5 {[%clk 0:01:06.7]} 30... Qxe5
{[%clk 0:00:16.6]} 31. Qe4 {[%clk 0:01:01.2]} 31... Re8 {[%clk 0:00:15.6]} 32.
Qxe5 {[%clk 0:01:01.2]} 32... Rxe5 {[%clk 0:00:16.1]} 33. g4 {[%clk 0:00:59]}
33... Re2 {[%clk 0:00:15.9]} 34. Bf3 {[%clk 0:00:57.5]} 34... Rb2 {[%clk
0:00:15.4]} 35. Rc3 {[%clk 0:00:58.1]} 35... Kf8 {[%clk 0:00:15]} 36. Kg2 {[%clk
0:00:58.1]} 36... Be5 {[%clk 0:00:13.8]} 37. Rd3 {[%clk 0:00:56.9]} 37... Bd4
{[%clk 0:00:14.4]} 38. d6 {[%clk 0:00:53.8]} 38... Rxf2+ {[%clk 0:00:14.3]} 39.
Kg3 {[%clk 0:00:53.3]} 39... Rb2 {[%clk 0:00:12.2]} 40. Bc6 {[%clk 0:00:50.8]}
40... Rc2 {[%clk 0:00:08.5]} 41. Kf3 {[%clk 0:00:47.4]} 41... Rc3 {[%clk
0:00:06.4]} 42. Rxc3 {[%clk 0:00:42.5]} 42... Bxc3 {[%clk 0:00:07.3]} 43. Ke4
{[%clk 0:00:43]} 43... Be1 {[%clk 0:00:04.8]} 44. h5 {[%clk 0:00:32.4]} 44...
Bg3 {[%clk 0:00:05.2]} 45. Kd5 {[%clk 0:00:32.4]} 45... Bf4 {[%clk 0:00:03]} 46.
Bd7 {[%clk 0:00:32.7]} 46... Bg3 {[%clk 0:00:02.1]} 47. Kc6 {[%clk 0:00:33]}
47... c4 {[%clk 0:00:01]} 48. bxc4 {[%clk 0:00:32.9]} 48... Bf2 {[%clk
0:00:01.7]} 49. Kc7 {[%clk 0:00:30.8]} 49... Bc5 {[%clk 0:00:01]} 50. Bc6 {[%clk
0:00:29.8]} 50... Be3 {[%clk 0:00:01]} 51. d7 {[%clk 0:00:27.5]} 51... Bf4+
{[%clk 0:00:01.4]} 52. Kc8 {[%clk 0:00:28]} 1-0

[Event "Early-Titled-Tuesday-Blitz-May-28-2024"]
[Site "Chess.com"]
[Date "2024.05.28"]
[Round "4"]
[White "Masterbeaterr"]
[Black "Mackster23"]
[Result "1-0"]
[WhiteElo "2476"]
[BlackElo "2671"]
[TimeControl "180+1"]
[EndTime "8:39:58 PDT"]
[Termination "Masterbeaterr won by resignation"]

1. d4 {[%clk 0:03:00.9]} 1... Nf6 {[%clk 0:02:59.3]} 2. c4 {[%clk 0:03:00.6]}
2... e6 {[%clk 0:02:57.7]} 3. Nc3 {[%clk 0:03:00.4]} 3... Bb4 {[%clk 0:02:56.8]}
4. f3 {[%clk 0:03:00.4]} 4... c5 {[%clk 0:02:55.9]} 5. a3 {[%clk 0:03:01.3]}
5... Bxc3+ {[%clk 0:02:54.7]} 6. bxc3 {[%clk 0:03:02]} 6... Nc6 {[%clk
0:02:51.8]} 7. e4 {[%clk 0:03:00.1]} 7... d6 {[%clk 0:02:51.4]} 8. Bg5 {[%clk
0:02:58.9]} 8... h6 {[%clk 0:02:49.1]} 9. Bh4 {[%clk 0:02:58.8]} 9... Qa5 {[%clk
0:02:47.1]} 10. Qd2 {[%clk 0:02:58.1]} 10... cxd4 {[%clk 0:02:47.1]} 11. Bxf6
{[%clk 0:02:53.7]} 11... gxf6 {[%clk 0:02:45.9]} 12. cxd4 {[%clk 0:02:53.3]}
12... Qxd2+ {[%clk 0:02:45.6]} 13. Kxd2 {[%clk 0:02:53.9]} 13... Nxd4 {[%clk
0:02:46.1]} 14. Kc3 {[%clk 0:02:53.7]} 14... Nc6 {[%clk 0:02:44.3]} 15. Ne2
{[%clk 0:02:54]} 15... Ke7 {[%clk 0:02:39.5]} 16. Rb1 {[%clk 0:02:54.2]} 16...
b6 {[%clk 0:02:37.7]} 17. Nd4 {[%clk 0:02:51.2]} 17... Na5 {[%clk 0:02:32.7]}
18. Be2 {[%clk 0:02:47]} 18... Ba6 {[%clk 0:02:12.8]} 19. Kb4 {[%clk 0:02:39.4]}
19... Rhc8 {[%clk 0:02:08.7]} 20. Nb5 {[%clk 0:02:39.3]} 20... Bxb5 {[%clk
0:02:03.2]} 21. cxb5 {[%clk 0:02:39.2]} 21... Rc2 {[%clk 0:02:02.5]} 22. Rhe1
{[%clk 0:02:35]} 22... Rac8 {[%clk 0:02:01.5]} 23. a4 {[%clk 0:02:29.9]} 23...
Rd2 {[%clk 0:01:42.3]} 24. Bf1 {[%clk 0:02:24.9]} 24... Rcc2 {[%clk 0:01:40.9]}
25. Rec1 {[%clk 0:02:24.5]} 25... Kd7 {[%clk 0:01:13.1]} 26. h4 {[%clk
0:02:23.4]} 26... Rd4+ {[%clk 0:00:55.4]} 27. Ka3 {[%clk 0:02:22.2]} 27... Nc4+
{[%clk 0:00:55.4]} 28. Kb3 {[%clk 0:02:14.1]} 28... Rxc1 {[%clk 0:00:50.9]} 29.
Rxc1 {[%clk 0:02:15]} 29... Ne3 {[%clk 0:00:39.7]} 30. g4 {[%clk 0:02:07.6]}
30... d5 {[%clk 0:00:30.4]} 31. exd5 {[%clk 0:02:05.1]} 31... Nxd5 {[%clk
0:00:31]} 32. Be2 {[%clk 0:01:50.3]} 32... Rd2 {[%clk 0:00:23.1]} 33. Bc4 {[%clk
0:01:42.6]} 33... Ne3 {[%clk 0:00:16.7]} 34. Rc3 {[%clk 0:01:35.6]} 34... Nxc4
{[%clk 0:00:15.3]} 35. Kxc4 {[%clk 0:01:36.5]} 35... Kd6 {[%clk 0:00:10.4]} 36.
Re3 {[%clk 0:01:33.6]} 36... e5 {[%clk 0:00:09]} 37. Re4 {[%clk 0:01:20.9]}
37... Ra2 {[%clk 0:00:06.2]} 38. Kb3 {[%clk 0:01:11.1]} 38... Rf2 {[%clk
0:00:06.3]} 39. Re3 {[%clk 0:01:10.3]} 39... Kd5 {[%clk 0:00:04.4]} 40. Kc3
{[%clk 0:01:10.9]} 40... Ra2 {[%clk 0:00:03.8]} 41. Rd3+ {[%clk 0:01:08.3]}
41... Ke6 {[%clk 0:00:03.7]} 42. Kb3 {[%clk 0:01:08.8]} 42... Rf2 {[%clk
0:00:03.7]} 43. Kc4 {[%clk 0:01:05.7]} 43... f5 {[%clk 0:00:03.6]} 44. gxf5+
{[%clk 0:01:03.7]} 44... Kxf5 {[%clk 0:00:04.5]} 45. Rd7 {[%clk 0:01:03.9]}
45... f6 {[%clk 0:00:04.9]} 46. Rxa7 {[%clk 0:01:04]} 46... Rxf3 {[%clk
0:00:05.6]} 47. a5 {[%clk 0:01:00.7]} 47... bxa5 {[%clk 0:00:05.8]} 48. b6
{[%clk 0:01:01.6]} 48... Rf1 {[%clk 0:00:04]} 49. Rxa5 {[%clk 0:01:01.9]} 49...
Rc1+ {[%clk 0:00:03.8]} 50. Kd5 {[%clk 0:00:59.6]} 50... Rb1 {[%clk 0:00:03.4]}
51. Kc6 {[%clk 0:00:59.9]} 51... Rc1+ {[%clk 0:00:02.6]} 52. Rc5 {[%clk
0:00:59.4]} 52... Rg1 {[%clk 0:00:02]} 53. b7 {[%clk 0:00:55.9]} 53... Rg8
{[%clk 0:00:02.6]} 54. Kc7 {[%clk 0:00:54]} 54... Kf4 {[%clk 0:00:01.4]} 55.
b8=Q {[%clk 0:00:53.9]} 55... Rxb8 {[%clk 0:00:01.6]} 56. Kxb8 {[%clk
0:00:53.7]} 56... e4 {[%clk 0:00:02.3]} 57. Kc7 {[%clk 0:00:52.9]} 57... e3
{[%clk 0:00:02.6]} 58. Kd6 {[%clk 0:00:52.6]} 58... e2 {[%clk 0:00:02.3]} 59.
Rc1 {[%clk 0:00:52.5]} 59... Ke3 {[%clk 0:00:01.8]} 60. Ke6 {[%clk 0:00:52.4]}
60... Kd2 {[%clk 0:00:01.6]} 61. Ra1 {[%clk 0:00:51.9]} 61... e1=Q+ {[%clk
0:00:01.4]} 62. Rxe1 {[%clk 0:00:52.5]} 62... Kxe1 {[%clk 0:00:02.3]} 63. Kxf6
{[%clk 0:00:52.7]} 63... Ke2 {[%clk 0:00:02.3]} 64. Kg6 {[%clk 0:00:53.6]} 64...
Ke3 {[%clk 0:00:02.5]} 65. Kxh6 {[%clk 0:00:54.2]} 65... Kf4 {[%clk 0:00:03.4]}
66. Kg6 {[%clk 0:00:54.3]} 1-0

[Event "Early-Titled-Tuesday-Blitz-May-28-2024"]
[Site "Chess.com"]
[Date "2024.05.28"]
[Round "4"]
[White "Giantgoogachess"]
[Black "Zhigalko_Sergei"]
[Result "0-1"]
[WhiteElo "2364"]
[BlackElo "2890"]
[TimeControl "180+1"]
[EndTime "8:40:01 PDT"]
[Termination "Zhigalko_Sergei won by checkmate"]

1. d4 {[%clk 0:03:00.9]} 1... Nf6 {[%clk 0:02:59.7]} 2. c4 {[%clk 0:03:00.4]}
2... e6 {[%clk 0:03:00.1]} 3. Nc3 {[%clk 0:02:59.3]} 3... Bb4 {[%clk 0:03:00.3]}
4. e3 {[%clk 0:02:55]} 4... O-O {[%clk 0:03:00.4]} 5. Bd3 {[%clk 0:02:53.9]}
5... d5 {[%clk 0:02:57.4]} 6. cxd5 {[%clk 0:02:52]} 6... exd5 {[%clk 0:02:58.3]}
7. a3 {[%clk 0:02:52.4]} 7... Bd6 {[%clk 0:02:57.2]} 8. Qc2 {[%clk 0:02:51.3]}
8... c6 {[%clk 0:02:54.5]} 9. Nge2 {[%clk 0:02:50.4]} 9... Re8 {[%clk
0:02:53.2]} 10. Bd2 {[%clk 0:02:47.4]} 10... Qe7 {[%clk 0:02:47]} 11. f3 {[%clk
0:02:47]} 11... c5 {[%clk 0:02:46.2]} 12. Nb5 {[%clk 0:02:07.9]} 12... c4 {[%clk
0:02:38.7]} 13. Nxd6 {[%clk 0:02:07.7]} 13... Qxd6 {[%clk 0:02:30.4]} 14. Bf5
{[%clk 0:02:08.1]} 14... Nc6 {[%clk 0:02:28.3]} 15. Kf2 {[%clk 0:02:05.2]} 15...
b5 {[%clk 0:02:25]} 16. g4 {[%clk 0:02:03.9]} 16... a5 {[%clk 0:02:10.4]} 17. h4
{[%clk 0:01:56.1]} 17... b4 {[%clk 0:02:02.1]} 18. axb4 {[%clk 0:01:42.5]} 18...
Bxf5 {[%clk 0:01:50.4]} 19. Qxf5 {[%clk 0:01:43.4]} 19... Nxb4 {[%clk
0:01:50.3]} 20. Nf4 {[%clk 0:01:35.9]} 20... Nc6 {[%clk 0:00:27.8]} 21. g5
{[%clk 0:01:31.4]} 21... Ne7 {[%clk 0:00:27.6]} 22. Qc2 {[%clk 0:01:17.1]} 22...
Nd7 {[%clk 0:00:25.5]} 23. Bxa5 {[%clk 0:01:06.6]} 23... Ng6 {[%clk 0:00:24.2]}
24. Nxg6 {[%clk 0:01:02.2]} 24... fxg6 {[%clk 0:00:25.1]} 25. h5 {[%clk
0:01:01.5]} 25... Qe7 {[%clk 0:00:13.6]} 26. Bd2 {[%clk 0:00:44]} 26... Rxa1
{[%clk 0:00:11.5]} 27. Rxa1 {[%clk 0:00:42.1]} 27... Qxg5 {[%clk 0:00:08.1]} 28.
hxg6 {[%clk 0:00:39.5]} 28... Qh4+ {[%clk 0:00:08.5]} 29. Kg2 {[%clk 0:00:34.2]}
29... Qg5+ {[%clk 0:00:08.7]} 30. Kf2 {[%clk 0:00:34.3]} 30... hxg6 {[%clk
0:00:09]} 31. Rg1 {[%clk 0:00:32.8]} 31... Qh4+ {[%clk 0:00:09.2]} 32. Rg3
{[%clk 0:00:29]} 32... Re6 {[%clk 0:00:07]} 33. Kg2 {[%clk 0:00:24.4]} 33... Kf7
{[%clk 0:00:04.9]} 34. Qa4 {[%clk 0:00:17.7]} 34... Nf6 {[%clk 0:00:04.2]} 35.
Bb4 {[%clk 0:00:15.5]} 35... Qh5 {[%clk 0:00:03.6]} 36. Qa7+ {[%clk 0:00:15.1]}
36... Kg8 {[%clk 0:00:04]} 37. Bd2 {[%clk 0:00:08.1]} 37... Qf5 {[%clk
0:00:03.7]} 38. Qb8+ {[%clk 0:00:05.2]} 38... Re8 {[%clk 0:00:03.9]} 39. Qb4
{[%clk 0:00:05.9]} 39... Qd3 {[%clk 0:00:03]} 40. Qc3 {[%clk 0:00:06.5]} 40...
Qe2+ {[%clk 0:00:03.3]} 41. Kg1 {[%clk 0:00:04.7]} 41... Kf7 {[%clk 0:00:03.3]}
42. b3 {[%clk 0:00:03.7]} 42... Rh8 {[%clk 0:00:02.8]} 43. Rg2 {[%clk
0:00:02.7]} 43... Qxf3 {[%clk 0:00:03.2]} 44. bxc4 {[%clk 0:00:02.9]} 44... Qd1+
{[%clk 0:00:02.9]} 45. Kf2 {[%clk 0:00:03.2]} 45... Ne4# {[%clk 0:00:03.2]} 0-1